[Event "Titled Tuesday Blitz February 21 Early 2023"]
[White "Turzo, Attila"]
[Black "Halkias, Stelios"]
[WhiteFideId "704954"]
[BlackFideId "4201809"]
[WhiteElo "2279"]
[BlackElo "2511"]
[Result "0-1"]
[Round "02"]
[TimeControl "180+2"]
[Date "2023.02.21"]
[WhiteClock "0:00:37"]
[BlackClock "0:01:33"]

1. d4 {[%clk 0:03:00]}  Nf6 {[%clk 0:02:58]} 2. c4 {[%clk 0:03:00]}  g6 {[%clk 0:02:59]} 3. Nc3 {[%clk 0:03:00]}  Bg7 {[%clk 0:02:59]} 4. e4 {[%clk 0:03:00]}  d6 {[%clk 0:02:59]} 5. Nf3 {[%clk 0:03:01]}  O-O {[%clk 0:03:00]} 6. Be2 {[%clk 0:03:02]}  e5 {[%clk 0:03:00]} 7. Be3 {[%clk 0:03:02]}  exd4 {[%clk 0:02:43]} 8. Nxd4 {[%clk 0:03:02]}  Re8 {[%clk 0:02:43]} 9. f3 {[%clk 0:02:59]}  c6 {[%clk 0:02:43]} 10. Qd2 {[%clk 0:02:59]}  d5 {[%clk 0:02:44]} 11. exd5 {[%clk 0:02:53]}  cxd5 {[%clk 0:02:44]} 12. O-O {[%clk 0:02:54]}  Nc6 {[%clk 0:02:43]} 13. Nxc6 {[%clk 0:02:26]}  bxc6 {[%clk 0:02:42]} 14. Rfe1 {[%clk 0:02:14]}  Rxe3 {[%clk 0:02:28]} 15. Qxe3 {[%clk 0:02:14]}  d4 {[%clk 0:02:29]} 16. Qd2 {[%clk 0:02:12]}  Bf5 {[%clk 0:02:24]} 17. Ne4 {[%clk 0:01:59]}  Bxe4 {[%clk 0:02:20]} 18. fxe4 {[%clk 0:01:59]}  Nxe4 {[%clk 0:02:20]} 19. Qc2 {[%clk 0:01:56]}  Qh4 {[%clk 0:02:05]} 20. Bf3 {[%clk 0:01:37]}  d3 {[%clk 0:02:04]} 21. Qxd3 {[%clk 0:01:32]}  Qf2+ {[%clk 0:02:04]} 22. Kh1 {[%clk 0:01:30]}  Qxe1+ {[%clk 0:02:04]} 23. Rxe1 {[%clk 0:01:29]}  Nf2+ {[%clk 0:02:04]} 24. Kg1 {[%clk 0:01:29]}  Nxd3 {[%clk 0:02:04]} 25. Bxc6 {[%clk 0:01:29]}  Rc8 {[%clk 0:02:00]} 26. Bd7 {[%clk 0:01:15]}  Nxe1 {[%clk 0:01:57]} 27. Bxc8 {[%clk 0:01:15]}  Bxb2 {[%clk 0:01:57]} 28. Kf1 {[%clk 0:01:14]}  Nd3 {[%clk 0:01:57]} 29. Bb7 {[%clk 0:01:09]}  Nc5 {[%clk 0:01:57]} 30. Bd5 {[%clk 0:01:08]}  Kf8 {[%clk 0:01:57]} 31. Ke2 {[%clk 0:01:09]}  Be5 {[%clk 0:01:57]} 32. h3 {[%clk 0:01:09]}  f5 {[%clk 0:01:57]} 33. Kf3 {[%clk 0:01:07]}  h5 {[%clk 0:01:55]} 34. g4 {[%clk 0:01:06]}  hxg4+ {[%clk 0:01:54]} 35. hxg4 {[%clk 0:01:07]}  Ke7 {[%clk 0:01:54]} 36. gxf5 {[%clk 0:01:06]}  gxf5 {[%clk 0:01:54]} 37. Bg8 {[%clk 0:01:06]}  a5 {[%clk 0:01:54]} 38. Bh7 {[%clk 0:01:05]}  Kf6 {[%clk 0:01:55]} 39. Bg8 {[%clk 0:01:04]}  a4 {[%clk 0:01:55]} 40. Ke3 {[%clk 0:01:04]}  a3 {[%clk 0:01:55]} 41. Bd5 {[%clk 0:01:03]}  Na4 {[%clk 0:01:55]} 42. Bg8 {[%clk 0:00:59]}  Kg5 {[%clk 0:01:46]} 43. Kf3 {[%clk 0:00:56]}  Bd4 {[%clk 0:01:43]} 44. Bf7 {[%clk 0:00:55]}  Nc3 {[%clk 0:01:43]} 45. c5 {[%clk 0:00:51]}  Bxc5 {[%clk 0:01:43]} 46. Bg8 {[%clk 0:00:52]}  Ne4 {[%clk 0:01:42]} 47. Bf7 {[%clk 0:00:51]}  Kf6 {[%clk 0:01:42]} 48. Bg8 {[%clk 0:00:51]}  Ke5 {[%clk 0:01:43]} 49. Kg2 {[%clk 0:00:47]}  f4 {[%clk 0:01:42]} 50. Kf3 {[%clk 0:00:48]}  Ng5+ {[%clk 0:01:42]} 51. Kg4 {[%clk 0:00:48]}  Ne4 {[%clk 0:01:42]} 52. Kf3 {[%clk 0:00:48]}  Nd2+ {[%clk 0:01:41]} 53. Ke2 {[%clk 0:00:48]}  Bb4 {[%clk 0:01:41]} 54. Kd3 {[%clk 0:00:44]}  Kf5 {[%clk 0:01:36]} 55. Ke2 {[%clk 0:00:41]}  Kg4 {[%clk 0:01:36]} 56. Kf2 {[%clk 0:00:39]}  Ne4+ {[%clk 0:01:35]} 57. Kg2 {[%clk 0:00:39]}  f3+ {[%clk 0:01:35]} 58. Kf1 {[%clk 0:00:39]}  Kg3 {[%clk 0:01:34]} 59. Bd5 {[%clk 0:00:38]}  Nd2+ {[%clk 0:01:33]} 60. Kg1 {[%clk 0:00:37]}  f2+ {[%clk 0:01:33]} 0-1


[Site "https://www.chess.com"]

[Event "Titled Tuesday Blitz February 21 Early 2023"]
[White "Zahid, Sanatan"]
[Black "Kokoszczynski, Jan"]
[WhiteFideId "10201963"]
[BlackFideId "1174460"]
[WhiteElo "1930"]
[BlackElo "2247"]
[Result "1-0"]
[Round "02"]
[TimeControl "180+2"]
[Date "2023.02.21"]
[WhiteClock "0:02:29"]
[BlackClock "0:00:34"]

1. d4 {[%clk 0:03:00]}  d5 {[%clk 0:02:59]} 2. Nc3 {[%clk 0:03:01]}  Nf6 {[%clk 0:02:56]} 3. Bf4 {[%clk 0:02:58]}  e6 {[%clk 0:02:51]} 4. Nb5 {[%clk 0:02:58]}  Bb4+ {[%clk 0:02:50]} 5. c3 {[%clk 0:02:58]}  Ba5 {[%clk 0:02:51]} 6. a4 {[%clk 0:02:59]}  a6 {[%clk 0:02:40]} 7. b4 {[%clk 0:02:57]}  Bb6 {[%clk 0:02:38]} 8. a5 {[%clk 0:02:57]}  axb5 {[%clk 0:02:27]} 9. axb6 {[%clk 0:02:57]}  Rxa1 {[%clk 0:02:11]} 10. Qxa1 {[%clk 0:02:52]}  Na6 {[%clk 0:01:50]} 11. bxc7 {[%clk 0:02:52]}  Nxc7 {[%clk 0:01:03]} 12. Qa5 {[%clk 0:02:51]}  Na6 {[%clk 0:01:00]} 13. Qxb5+ {[%clk 0:02:51]}  Qd7 {[%clk 0:01:00]} 14. e3 {[%clk 0:02:50]}  O-O {[%clk 0:00:59]} 15. f3 {[%clk 0:02:48]}  Nh5 {[%clk 0:00:54]} 16. Qxd7 {[%clk 0:02:39]}  Bxd7 {[%clk 0:00:54]} 17. Bd6 {[%clk 0:02:38]}  Rc8 {[%clk 0:00:54]} 18. Kd2 {[%clk 0:02:34]}  Nc7 {[%clk 0:00:45]} 19. Nh3 {[%clk 0:02:30]}  Nf6 {[%clk 0:00:45]} 20. Bxc7 {[%clk 0:02:30]}  Rxc7 {[%clk 0:00:45]} 21. Bd3 {[%clk 0:02:31]}  Kf8 {[%clk 0:00:45]} 22. Ra1 {[%clk 0:02:31]}  Ke7 {[%clk 0:00:45]} 23. e4 {[%clk 0:02:31]}  Bc6 {[%clk 0:00:34]} 24. e5 {[%clk 0:02:28]}  Nd7 {[%clk 0:00:34]} 25. b5 {[%clk 0:02:29]} 1-0


[Site "https://www.chess.com"]

[Event "Titled Tuesday Blitz February 21 Early 2023"]
[White "Balla, Tamas-Kristof"]
[Black "Kislinsky, Alexey"]
[WhiteFideId "1208497"]
[BlackFideId "14108801"]
[WhiteElo "2303"]
[BlackElo "2357"]
[Result "0-1"]
[Round "02"]
[TimeControl "180+2"]
[Date "2023.02.21"]
[WhiteClock "0:00:07"]
[BlackClock "0:02:02"]

1. e4 {[%clk 0:03:00]}  c5 {[%clk 0:02:50]} 2. c3 {[%clk 0:02:59]}  e6 {[%clk 0:02:49]} 3. d4 {[%clk 0:02:59]}  d5 {[%clk 0:02:49]} 4. exd5 {[%clk 0:02:59]}  exd5 {[%clk 0:02:50]} 5. Nf3 {[%clk 0:03:00]}  Nf6 {[%clk 0:02:50]} 6. Bd3 {[%clk 0:02:59]}  Bd6 {[%clk 0:02:47]} 7. dxc5 {[%clk 0:02:58]}  Bxc5 {[%clk 0:02:48]} 8. O-O {[%clk 0:02:58]}  O-O {[%clk 0:02:48]} 9. Nbd2 {[%clk 0:02:57]}  h6 {[%clk 0:02:45]} 10. Nb3 {[%clk 0:02:57]}  Bb6 {[%clk 0:02:46]} 11. Bf4 {[%clk 0:02:42]}  Nc6 {[%clk 0:02:45]} 12. Qd2 {[%clk 0:02:39]}  Bg4 {[%clk 0:02:41]} 13. Nfd4 {[%clk 0:02:36]}  Nxd4 {[%clk 0:02:39]} 14. Nxd4 {[%clk 0:02:31]}  Ne4 {[%clk 0:02:39]} 15. Qc2 {[%clk 0:02:16]}  Qf6 {[%clk 0:02:32]} 16. Be3 {[%clk 0:01:58]}  Nc5 {[%clk 0:02:32]} 17. h3 {[%clk 0:01:49]}  Bh5 {[%clk 0:02:27]} 18. Rfe1 {[%clk 0:01:17]}  Nxd3 {[%clk 0:02:24]} 19. Qxd3 {[%clk 0:01:18]}  Bg6 {[%clk 0:02:23]} 20. Qd2 {[%clk 0:01:10]}  Be4 {[%clk 0:02:22]} 21. Rad1 {[%clk 0:01:06]}  Qg6 {[%clk 0:02:20]} 22. f4 {[%clk 0:00:49]}  Rfe8 {[%clk 0:02:17]} 23. Qf2 {[%clk 0:00:45]}  f5 {[%clk 0:02:12]} 24. Nf3 {[%clk 0:00:40]}  Bc7 {[%clk 0:02:12]} 25. Ne5 {[%clk 0:00:33]}  Bxe5 {[%clk 0:02:10]} 26. fxe5 {[%clk 0:00:34]}  Rxe5 {[%clk 0:02:10]} 27. Bd4 {[%clk 0:00:28]}  Re6 {[%clk 0:02:10]} 28. Re3 {[%clk 0:00:27]}  f4 {[%clk 0:02:10]} 29. Ree1 {[%clk 0:00:11]}  a6 {[%clk 0:02:08]} 30. Kh2 {[%clk 0:00:11]}  Rf8 {[%clk 0:02:07]} 31. Rg1 {[%clk 0:00:11]}  Qg5 {[%clk 0:02:03]} 32. Rdf1 {[%clk 0:00:07]}  Rg6 {[%clk 0:02:03]} 33. Qd2 {[%clk 0:00:06]}  Qg3+ {[%clk 0:02:02]} 34. Kh1 {[%clk 0:00:07]}  Qxh3# {[%clk 0:02:02]} 0-1


[Site "https://www.chess.com"]

[Event "Titled Tuesday Blitz February 21 Early 2023"]
[White "Trost, Edvin"]
[Black "Shapiro, Viktor"]
[WhiteFideId "1729519"]
[BlackFideId "4175700"]
[WhiteElo "2399"]
[BlackElo "2192"]
[Result "0-1"]
[Round "02"]
[TimeControl "180+2"]
[Date "2023.02.21"]
[WhiteClock "0:00:02"]
[BlackClock "0:00:34"]

1. Nf3 {[%clk 0:02:59]}  Nf6 {[%clk 0:03:00]} 2. b3 {[%clk 0:02:59]}  c5 {[%clk 0:03:01]} 3. Bb2 {[%clk 0:03:00]}  Nc6 {[%clk 0:03:01]} 4. g3 {[%clk 0:03:00]}  g6 {[%clk 0:03:01]} 5. Bg2 {[%clk 0:03:01]}  Bg7 {[%clk 0:03:02]} 6. O-O {[%clk 0:03:02]}  O-O {[%clk 0:03:02]} 7. c4 {[%clk 0:03:02]}  d6 {[%clk 0:03:02]} 8. d4 {[%clk 0:03:02]}  cxd4 {[%clk 0:03:02]} 9. Nxd4 {[%clk 0:03:03]}  Bd7 {[%clk 0:03:03]} 10. Nc3 {[%clk 0:03:02]}  a6 {[%clk 0:03:03]} 11. Rc1 {[%clk 0:03:02]}  Rc8 {[%clk 0:03:04]} 12. Nd5 {[%clk 0:02:57]}  Nxd5 {[%clk 0:03:03]} 13. Bxd5 {[%clk 0:02:45]}  Qa5 {[%clk 0:02:47]} 14. a4 {[%clk 0:02:28]}  Rfd8 {[%clk 0:02:36]} 15. e3 {[%clk 0:02:20]}  e6 {[%clk 0:02:34]} 16. Bg2 {[%clk 0:02:19]}  Qb6 {[%clk 0:02:27]} 17. Bc3 {[%clk 0:02:12]}  Nxd4 {[%clk 0:02:14]} 18. Bxd4 {[%clk 0:02:11]}  Bxd4 {[%clk 0:02:14]} 19. exd4 {[%clk 0:02:10]}  Qb4 {[%clk 0:02:10]} 20. Qc2 {[%clk 0:02:05]}  b5 {[%clk 0:02:08]} 21. axb5 {[%clk 0:02:06]}  axb5 {[%clk 0:02:08]} 22. c5 {[%clk 0:02:01]}  Qxd4 {[%clk 0:02:05]} 23. c6 {[%clk 0:01:54]}  Rc7 {[%clk 0:01:59]} 24. Qe2 {[%clk 0:01:49]}  Be8 {[%clk 0:01:39]} 25. Qxb5 {[%clk 0:01:48]}  d5 {[%clk 0:01:30]} 26. Rfd1 {[%clk 0:01:33]}  Qa7 {[%clk 0:01:30]} 27. Rd2 {[%clk 0:01:20]}  Rb8 {[%clk 0:01:28]} 28. Qe2 {[%clk 0:01:04]}  Qa3 {[%clk 0:01:24]} 29. Rdc2 {[%clk 0:01:03]}  Qxb3 {[%clk 0:01:17]} 30. Qe5 {[%clk 0:01:00]}  Rbc8 {[%clk 0:01:15]} 31. h4 {[%clk 0:00:48]}  h5 {[%clk 0:01:12]} 32. Qd6 {[%clk 0:00:47]}  Qb6 {[%clk 0:01:08]} 33. g4 {[%clk 0:00:43]}  hxg4 {[%clk 0:01:07]} 34. Qf4 {[%clk 0:00:41]}  Rxc6 {[%clk 0:01:05]} 35. Rxc6 {[%clk 0:00:41]}  Rxc6 {[%clk 0:01:05]} 36. Rxc6 {[%clk 0:00:41]}  Bxc6 {[%clk 0:01:04]} 37. Qxg4 {[%clk 0:00:42]}  Qb1+ {[%clk 0:00:56]} 38. Kh2 {[%clk 0:00:41]}  Qf5 {[%clk 0:00:54]} 39. Qg3 {[%clk 0:00:40]}  e5 {[%clk 0:00:52]} 40. Qc3 {[%clk 0:00:37]}  Qe6 {[%clk 0:00:50]} 41. Kg1 {[%clk 0:00:33]}  e4 {[%clk 0:00:41]} 42. Qg3 {[%clk 0:00:13]}  Kg7 {[%clk 0:00:40]} 43. h5 {[%clk 0:00:13]}  Qf6 {[%clk 0:00:40]} 44. Qg4 {[%clk 0:00:11]}  g5 {[%clk 0:00:39]} 45. Qc8 {[%clk 0:00:10]}  d4 {[%clk 0:00:36]} 46. Kf1 {[%clk 0:00:05]}  d3 {[%clk 0:00:35]} 47. Ke1 {[%clk 0:00:06]}  Qc3+ {[%clk 0:00:34]} 48. Kf1 {[%clk 0:00:02]}  Qc1# {[%clk 0:00:34]} 0-1


[Site "https://www.chess.com"]

[Event "Titled Tuesday Blitz February 21 Early 2023"]
[White "EREBUNI91"]
[Black "Ilinca Ilinca, Felix Antonio"]
[BlackFideId "54764998"]
[WhiteElo "2722"]
[BlackElo "2266"]
[Result "1-0"]
[Round "02"]
[TimeControl "180+2"]
[Date "2023.02.21"]
[WhiteClock "0:01:13"]
[BlackClock "0:01:05"]

1. e4 {[%clk 0:03:00]}  c5 {[%clk 0:02:59]} 2. Nc3 {[%clk 0:02:58]}  e6 {[%clk 0:02:58]} 3. Nf3 {[%clk 0:02:57]}  Nc6 {[%clk 0:02:57]} 4. Bb5 {[%clk 0:02:56]}  Nge7 {[%clk 0:02:56]} 5. O-O {[%clk 0:02:54]}  a6 {[%clk 0:02:56]} 6. Bxc6 {[%clk 0:02:53]}  Nxc6 {[%clk 0:02:57]} 7. d4 {[%clk 0:02:52]}  cxd4 {[%clk 0:02:57]} 8. Nxd4 {[%clk 0:02:53]}  Qc7 {[%clk 0:02:56]} 9. Re1 {[%clk 0:02:47]}  Be7 {[%clk 0:02:26]} 10. Nxc6 {[%clk 0:02:33]}  bxc6 {[%clk 0:02:25]} 11. e5 {[%clk 0:02:32]}  O-O {[%clk 0:02:24]} 12. Bf4 {[%clk 0:02:29]}  Rb8 {[%clk 0:02:16]} 13. b3 {[%clk 0:02:15]}  Bb7 {[%clk 0:02:04]} 14. Qh5 {[%clk 0:02:06]}  f5 {[%clk 0:01:33]} 15. exf6 {[%clk 0:02:03]}  Qxf4 {[%clk 0:01:32]} 16. fxe7 {[%clk 0:02:00]}  Qxf2+ {[%clk 0:01:32]} 17. Kh1 {[%clk 0:01:58]}  Rf7 {[%clk 0:01:31]} 18. Ne4 {[%clk 0:01:51]}  Qf4 {[%clk 0:01:20]} 19. Ng5 {[%clk 0:01:45]}  g6 {[%clk 0:01:16]} 20. Nxf7 {[%clk 0:01:14]}  gxh5 {[%clk 0:01:05]} 21. Nd8 {[%clk 0:01:13]} 1-0


[Site "https://www.chess.com"]

[Event "Titled Tuesday Blitz February 21 Early 2023"]
[White "Talibov, Shiroghlan"]
[Black "Tifferet, Shaked"]
[WhiteFideId "13429078"]
[BlackFideId "2811529"]
[WhiteElo "2359"]
[BlackElo "2142"]
[Result "1-0"]
[Round "02"]
[TimeControl "180+2"]
[Date "2023.02.21"]
[WhiteClock "0:00:58"]
[BlackClock "0:00:13"]

1. d4 {[%clk 0:03:00]}  Nf6 {[%clk 0:02:59]} 2. c4 {[%clk 0:03:00]}  e6 {[%clk 0:02:59]} 3. Nf3 {[%clk 0:02:58]}  b6 {[%clk 0:02:59]} 4. g3 {[%clk 0:02:57]}  Ba6 {[%clk 0:02:55]} 5. b3 {[%clk 0:02:56]}  Bb4+ {[%clk 0:02:56]} 6. Bd2 {[%clk 0:02:55]}  Be7 {[%clk 0:02:56]} 7. Nc3 {[%clk 0:02:54]}  d5 {[%clk 0:02:54]} 8. cxd5 {[%clk 0:02:53]}  exd5 {[%clk 0:02:54]} 9. Bg2 {[%clk 0:02:52]}  O-O {[%clk 0:02:54]} 10. O-O {[%clk 0:02:52]}  Re8 {[%clk 0:02:50]} 11. Rc1 {[%clk 0:02:51]}  c6 {[%clk 0:02:43]} 12. Bf4 {[%clk 0:02:50]}  Nbd7 {[%clk 0:02:08]} 13. Re1 {[%clk 0:02:47]}  Bb4 {[%clk 0:02:02]} 14. Bd2 {[%clk 0:02:39]}  Rc8 {[%clk 0:01:52]} 15. Bh3 {[%clk 0:02:25]}  Rc7 {[%clk 0:01:45]} 16. Bf4 {[%clk 0:02:23]}  Rb7 {[%clk 0:01:40]} 17. Nd2 {[%clk 0:02:22]}  Nf8 {[%clk 0:01:37]} 18. e3 {[%clk 0:02:18]}  h6 {[%clk 0:01:23]} 19. g4 {[%clk 0:02:13]}  Ne6 {[%clk 0:01:08]} 20. Bg3 {[%clk 0:02:12]}  c5 {[%clk 0:01:02]} 21. dxc5 {[%clk 0:01:59]}  bxc5 {[%clk 0:00:53]} 22. Bg2 {[%clk 0:01:56]}  Rd7 {[%clk 0:00:50]} 23. Ncb1 {[%clk 0:01:33]}  Bd3 {[%clk 0:00:17]} 24. a3 {[%clk 0:01:25]}  Ba5 {[%clk 0:00:17]} 25. b4 {[%clk 0:01:20]}  cxb4 {[%clk 0:00:16]} 26. axb4 {[%clk 0:01:21]}  Bxb4 {[%clk 0:00:17]} 27. Qb3 {[%clk 0:01:22]}  Bxd2 {[%clk 0:00:15]} 28. Nxd2 {[%clk 0:01:21]}  Bc4 {[%clk 0:00:15]} 29. Nxc4 {[%clk 0:01:18]}  dxc4 {[%clk 0:00:15]} 30. Rxc4 {[%clk 0:01:18]}  h5 {[%clk 0:00:14]} 31. h3 {[%clk 0:01:16]}  hxg4 {[%clk 0:00:13]} 32. hxg4 {[%clk 0:01:17]}  Rd3 {[%clk 0:00:13]} 33. Qc2 {[%clk 0:01:08]}  Rd2 {[%clk 0:00:13]} 34. Qb1 {[%clk 0:01:07]}  Qa5 {[%clk 0:00:13]} 35. Qf5 {[%clk 0:01:01]}  Red8 {[%clk 0:00:13]} 36. Qxa5 {[%clk 0:01:00]}  Nxg4 {[%clk 0:00:13]} 37. Rxg4 {[%clk 0:00:58]} 1-0


[Site "https://www.chess.com"]

[Event "Titled Tuesday Blitz February 21 Early 2023"]
[White "Dehtiarov, Roman"]
[Black "Goltseva, Ekaterina"]
[WhiteFideId "14186640"]
[BlackFideId "24173770"]
[WhiteElo "2289"]
[BlackElo "2283"]
[Result "1-0"]
[Round "02"]
[TimeControl "180+2"]
[Date "2023.02.21"]
[WhiteClock "0:00:12"]
[BlackClock "0:00:11"]

1. e4 {[%clk 0:03:00]}  e5 {[%clk 0:02:41]} 2. Nf3 {[%clk 0:03:00]}  Nc6 {[%clk 0:02:41]} 3. Bb5 {[%clk 0:03:01]}  a6 {[%clk 0:02:41]} 4. Ba4 {[%clk 0:03:01]}  Nf6 {[%clk 0:02:39]} 5. d4 {[%clk 0:03:01]}  exd4 {[%clk 0:02:27]} 6. O-O {[%clk 0:02:59]}  Be7 {[%clk 0:02:22]} 7. e5 {[%clk 0:02:58]}  Ne4 {[%clk 0:02:22]} 8. Nxd4 {[%clk 0:02:58]}  Nc5 {[%clk 0:02:20]} 9. Nf5 {[%clk 0:02:57]}  O-O {[%clk 0:01:56]} 10. Qg4 {[%clk 0:02:48]}  g6 {[%clk 0:01:50]} 11. Bxc6 {[%clk 0:02:47]}  dxc6 {[%clk 0:01:47]} 12. Nxe7+ {[%clk 0:02:47]}  Qxe7 {[%clk 0:01:46]} 13. Qg3 {[%clk 0:02:47]}  Re8 {[%clk 0:01:37]} 14. f4 {[%clk 0:02:44]}  Ne4 {[%clk 0:01:36]} 15. Qe3 {[%clk 0:02:39]}  Qc5 {[%clk 0:01:35]} 16. Qxc5 {[%clk 0:02:37]}  Nxc5 {[%clk 0:01:36]} 17. Nc3 {[%clk 0:02:37]}  Bf5 {[%clk 0:01:35]} 18. Be3 {[%clk 0:02:37]}  Ne6 {[%clk 0:01:25]} 19. Rf2 {[%clk 0:02:34]}  Rad8 {[%clk 0:01:21]} 20. h3 {[%clk 0:02:34]}  h5 {[%clk 0:01:21]} 21. g3 {[%clk 0:02:34]}  Bxh3 {[%clk 0:01:20]} 22. Ne4 {[%clk 0:02:28]}  Kg7 {[%clk 0:01:15]} 23. Nf6 {[%clk 0:02:25]}  Rh8 {[%clk 0:01:13]} 24. Bd2 {[%clk 0:01:54]}  Bf5 {[%clk 0:00:55]} 25. Bc3 {[%clk 0:01:54]}  Nd4 {[%clk 0:00:56]} 26. Rc1 {[%clk 0:01:31]}  c5 {[%clk 0:00:53]} 27. Kg2 {[%clk 0:01:26]}  b5 {[%clk 0:00:48]} 28. b4 {[%clk 0:01:23]}  cxb4 {[%clk 0:00:46]} 29. Bxb4 {[%clk 0:01:23]}  Bc8 {[%clk 0:00:43]} 30. Rcf1 {[%clk 0:00:58]}  Bb7+ {[%clk 0:00:42]} 31. Kh2 {[%clk 0:00:58]}  Nf5 {[%clk 0:00:22]} 32. Bc3 {[%clk 0:00:45]}  Nd4 {[%clk 0:00:20]} 33. Bb4 {[%clk 0:00:37]}  Nf5 {[%clk 0:00:18]} 34. Re1 {[%clk 0:00:29]}  Nh6 {[%clk 0:00:09]} 35. Rfe2 {[%clk 0:00:16]}  Ng4+ {[%clk 0:00:09]} 36. Kg1 {[%clk 0:00:16]}  Nxf6 {[%clk 0:00:01]} 37. exf6+ {[%clk 0:00:17]}  Kh7 {[%clk 0:00:02]} 38. Re7 {[%clk 0:00:17]}  Bd5 {[%clk 0:00:02]} 39. Rxc7 {[%clk 0:00:15]}  Rc8 {[%clk 0:00:02]} 40. Rd7 {[%clk 0:00:15]}  Bc4 {[%clk 0:00:01]} 41. Ree7 {[%clk 0:00:14]}  Rhd8 {[%clk 0:00:02]} 42. Rxf7+ {[%clk 0:00:09]}  Bxf7 {[%clk 0:00:01]} 43. Rxf7+ {[%clk 0:00:10]}  Kh8 {[%clk 0:00:02]} 44. c3 {[%clk 0:00:10]}  Rd1+ {[%clk 0:00:02]} 45. Kg2 {[%clk 0:00:10]}  Rcd8 {[%clk 0:00:03]} 46. Re7 {[%clk 0:00:07]}  R1d2+ {[%clk 0:00:03]} 47. Kh3 {[%clk 0:00:05]}  R2d7 {[%clk 0:00:03]} 48. f7 {[%clk 0:00:05]}  Kg7 {[%clk 0:00:01]} 49. f8=Q+ {[%clk 0:00:03]}  Kxf8 {[%clk 0:00:01]} 50. Rxd7+ {[%clk 0:00:04]}  Ke8 {[%clk 0:00:02]} 51. Re7+ {[%clk 0:00:05]}  Kf8 {[%clk 0:00:02]} 52. Rd7+ {[%clk 0:00:05]}  Ke8 {[%clk 0:00:02]} 53. Rxd8+ {[%clk 0:00:06]}  Kxd8 {[%clk 0:00:03]} 54. Kh4 {[%clk 0:00:07]}  Kc7 {[%clk 0:00:03]} 55. Kg5 {[%clk 0:00:08]}  Kb6 {[%clk 0:00:04]} 56. Kxg6 {[%clk 0:00:08]}  a5 {[%clk 0:00:04]} 57. Be7 {[%clk 0:00:08]}  a4 {[%clk 0:00:05]} 58. Kxh5 {[%clk 0:00:07]}  Ka5 {[%clk 0:00:05]} 59. Bb4+ {[%clk 0:00:07]}  Kb6 {[%clk 0:00:06]} 60. g4 {[%clk 0:00:08]}  a3 {[%clk 0:00:06]} 61. g5 {[%clk 0:00:09]}  Ka6 {[%clk 0:00:07]} 62. g6 {[%clk 0:00:10]}  Kb6 {[%clk 0:00:08]} 63. Bxa3 {[%clk 0:00:10]}  Ka6 {[%clk 0:00:09]} 64. Bb4 {[%clk 0:00:11]}  Kb6 {[%clk 0:00:10]} 65. g7 {[%clk 0:00:11]}  Ka6 {[%clk 0:00:10]} 66. g8=Q {[%clk 0:00:12]}  Kb6 {[%clk 0:00:11]} 67. Qe6+ {[%clk 0:00:12]}  Ka7 {[%clk 0:00:11]} 68. Kg5 {[%clk 0:00:12]} 1-0


[Site "https://www.chess.com"]

[Event "Titled Tuesday Blitz February 21 Early 2023"]
[White "Liyanage, Ranindu Dilshan"]
[Black "Poeta, Caio Medeiros"]
[WhiteFideId "9915834"]
[BlackFideId "2142660"]
[WhiteElo "2342"]
[BlackElo "2088"]
[Result "1-0"]
[Round "02"]
[TimeControl "180+2"]
[Date "2023.02.21"]
[WhiteClock "0:02:16"]
[BlackClock "0:01:53"]

1. d4 {[%clk 0:03:00]}  Nf6 {[%clk 0:02:59]} 2. Nc3 {[%clk 0:03:01]}  c5 {[%clk 0:02:54]} 3. d5 {[%clk 0:03:00]}  e6 {[%clk 0:02:54]} 4. e4 {[%clk 0:02:58]}  exd5 {[%clk 0:02:52]} 5. exd5 {[%clk 0:02:59]}  d6 {[%clk 0:02:53]} 6. Nf3 {[%clk 0:02:56]}  g6 {[%clk 0:02:52]} 7. a4 {[%clk 0:02:52]}  Bg7 {[%clk 0:02:53]} 8. Bd3 {[%clk 0:02:51]}  O-O {[%clk 0:02:52]} 9. O-O {[%clk 0:02:51]}  a6 {[%clk 0:02:46]} 10. h3 {[%clk 0:02:50]}  b6 {[%clk 0:02:40]} 11. Bf4 {[%clk 0:02:48]}  Bb7 {[%clk 0:02:36]} 12. Bc4 {[%clk 0:02:48]}  Ne8 {[%clk 0:02:31]} 13. Qd2 {[%clk 0:02:46]}  Nc7 {[%clk 0:02:25]} 14. Rfe1 {[%clk 0:02:39]}  b5 {[%clk 0:02:11]} 15. axb5 {[%clk 0:02:40]}  axb5 {[%clk 0:02:11]} 16. Rxa8 {[%clk 0:02:24]}  Bxa8 {[%clk 0:02:11]} 17. Nxb5 {[%clk 0:02:23]}  Nxb5 {[%clk 0:02:10]} 18. Bxb5 {[%clk 0:02:24]}  Bxb2 {[%clk 0:02:10]} 19. c3 {[%clk 0:02:22]}  Ba3 {[%clk 0:01:56]} 20. Bh6 {[%clk 0:02:18]}  c4 {[%clk 0:01:52]} 21. Bxf8 {[%clk 0:02:17]}  Kxf8 {[%clk 0:01:53]} 22. Qh6+ {[%clk 0:02:16]} 1-0


[Site "https://www.chess.com"]